[Event "Titled Tuesday Blitz November 07 Early 2023"]
[White "Dodaro, Mattia"]
[Black "UK_23"]
[WhiteFideId "28583400"]
[WhiteElo "2258"]
[BlackElo "2395"]
[Result "1/2-1/2"]
[Round "4"]
[TimeControl "180+1"]
[Date "2023.11.07"]
[WhiteClock "0:00:16"]
[BlackClock "0:00:18"]
[Board "201"]

1. Nf3 {[%clk 0:02:52]}  d5 {[%clk 0:02:07]} 2. c4 {[%clk 0:02:42]}  e6 {[%clk 0:02:06]} 3. e3 {[%clk 0:02:42]}  Nf6 {[%clk 0:02:06]} 4. b3 {[%clk 0:02:42]}  a6 {[%clk 0:02:05]} 5. Bb2 {[%clk 0:02:43]}  b6 {[%clk 0:02:05]} 6. Be2 {[%clk 0:02:43]}  Bb7 {[%clk 0:02:05]} 7. O-O {[%clk 0:02:44]}  Nbd7 {[%clk 0:02:05]} 8. d4 {[%clk 0:02:45]}  Bd6 {[%clk 0:02:05]} 9. Nbd2 {[%clk 0:02:43]}  O-O {[%clk 0:02:06]} 10. Qc2 {[%clk 0:02:44]}  Ne4 {[%clk 0:02:05]} 11. Rac1 {[%clk 0:02:42]}  f5 {[%clk 0:02:04]} 12. Ne1 {[%clk 0:02:24]}  f4 {[%clk 0:02:01]} 13. Nxe4 {[%clk 0:02:19]}  dxe4 {[%clk 0:02:00]} 14. c5 {[%clk 0:02:20]}  bxc5 {[%clk 0:01:51]} 15. dxc5 {[%clk 0:02:20]}  Nxc5 {[%clk 0:01:48]} 16. exf4 {[%clk 0:02:14]}  Rxf4 {[%clk 0:01:45]} 17. g3 {[%clk 0:01:44]}  Rf7 {[%clk 0:01:41]} 18. Ng2 {[%clk 0:01:41]}  Qg5 {[%clk 0:01:36]} 19. Bc4 {[%clk 0:01:31]}  a5 {[%clk 0:01:30]} 20. Bd4 {[%clk 0:01:21]}  Re8 {[%clk 0:01:16]} 21. Bxc5 {[%clk 0:01:14]}  Bxc5 {[%clk 0:01:07]} 22. Bxe6 {[%clk 0:01:15]}  Rxe6 {[%clk 0:00:52]} 23. Qxc5 {[%clk 0:01:14]}  Qxc5 {[%clk 0:00:49]} 24. Rxc5 {[%clk 0:01:15]}  a4 {[%clk 0:00:49]} 25. bxa4 {[%clk 0:01:13]}  Ra6 {[%clk 0:00:48]} 26. Rc4 {[%clk 0:01:07]}  Bd5 {[%clk 0:00:49]} 27. Rd4 {[%clk 0:00:57]}  Bxa2 {[%clk 0:00:47]} 28. Rxe4 {[%clk 0:00:55]}  Bd5 {[%clk 0:00:46]} 29. Rd4 {[%clk 0:00:52]}  Bxg2 {[%clk 0:00:46]} 30. Kxg2 {[%clk 0:00:53]}  c5 {[%clk 0:00:46]} 31. Rc4 {[%clk 0:00:53]}  Ra5 {[%clk 0:00:45]} 32. Rfc1 {[%clk 0:00:47]}  Rfa7 {[%clk 0:00:46]} 33. Rxc5 {[%clk 0:00:46]}  Rxc5 {[%clk 0:00:46]} 34. Rxc5 {[%clk 0:00:46]}  Rxa4 {[%clk 0:00:47]} 35. Rc7 {[%clk 0:00:46]}  h5 {[%clk 0:00:46]} 36. h4 {[%clk 0:00:47]}  Kh7 {[%clk 0:00:46]} 37. Rc6 {[%clk 0:00:47]}  Rb4 {[%clk 0:00:46]} 38. Rc5 {[%clk 0:00:46]}  Kh6 {[%clk 0:00:45]} 39. Rc6+ {[%clk 0:00:47]}  Kh7 {[%clk 0:00:45]} 40. Kf3 {[%clk 0:00:47]}  Ra4 {[%clk 0:00:45]} 41. Re6 {[%clk 0:00:47]}  Rb4 {[%clk 0:00:46]} 42. Re4 {[%clk 0:00:46]}  Rb2 {[%clk 0:00:43]} 43. Rf4 {[%clk 0:00:46]}  Kg6 {[%clk 0:00:42]} 44. Kg2 {[%clk 0:00:43]}  Rb3 {[%clk 0:00:42]} 45. Kh3 {[%clk 0:00:43]}  Rb1 {[%clk 0:00:41]} 46. Rf8 {[%clk 0:00:43]}  Rh1+ {[%clk 0:00:41]} 47. Kg2 {[%clk 0:00:44]}  Rb1 {[%clk 0:00:41]} 48. Rc8 {[%clk 0:00:41]}  Rb3 {[%clk 0:00:40]} 49. Rc6+ {[%clk 0:00:40]}  Kh7 {[%clk 0:00:40]} 50. Rc8 {[%clk 0:00:40]}  Kg6 {[%clk 0:00:40]} 51. Rf8 {[%clk 0:00:40]}  Ra3 {[%clk 0:00:39]} 52. Rb8 {[%clk 0:00:33]}  Rc3 {[%clk 0:00:39]} 53. Rb5 {[%clk 0:00:34]}  Ra3 {[%clk 0:00:38]} 54. Rg5+ {[%clk 0:00:34]}  Kh6 {[%clk 0:00:38]} 55. Rf5 {[%clk 0:00:14]}  Kg6 {[%clk 0:00:38]} 56. Rf4 {[%clk 0:00:13]}  Rb3 {[%clk 0:00:37]} 57. f3 {[%clk 0:00:14]}  Rb2+ {[%clk 0:00:34]} 58. Kh3 {[%clk 0:00:14]}  Rb1 {[%clk 0:00:32]} 59. g4 {[%clk 0:00:13]}  hxg4+ {[%clk 0:00:29]} 60. fxg4 {[%clk 0:00:13]}  Rb3+ {[%clk 0:00:26]} 61. Kg2 {[%clk 0:00:13]}  Ra3 {[%clk 0:00:26]} 62. Rf3 {[%clk 0:00:13]}  Ra1 {[%clk 0:00:22]} 63. Kg3 {[%clk 0:00:13]}  Rb1 {[%clk 0:00:22]} 64. Rc3 {[%clk 0:00:13]}  Rg1+ {[%clk 0:00:20]} 65. Kh3 {[%clk 0:00:13]}  Ra1 {[%clk 0:00:18]} 66. Rc6+ {[%clk 0:00:13]}  Kh7 {[%clk 0:00:19]} 67. h5 {[%clk 0:00:13]}  Rh1+ {[%clk 0:00:17]} 68. Kg3 {[%clk 0:00:13]}  Rb1 {[%clk 0:00:16]} 69. Kh4 {[%clk 0:00:14]}  Rb5 {[%clk 0:00:15]} 70. Rc7 {[%clk 0:00:13]}  Ra5 {[%clk 0:00:15]} 71. Rb7 {[%clk 0:00:14]}  Rc5 {[%clk 0:00:15]} 72. Rb4 {[%clk 0:00:14]}  Ra5 {[%clk 0:00:15]} 73. Re4 {[%clk 0:00:14]}  Rc5 {[%clk 0:00:15]} 74. Rf4 {[%clk 0:00:15]}  Rd5 {[%clk 0:00:15]} 75. Rf5 {[%clk 0:00:15]}  Rd1 {[%clk 0:00:14]} 76. Kg5 {[%clk 0:00:16]}  Rh1 {[%clk 0:00:14]} 77. Rc5 {[%clk 0:00:16]}  Rh2 {[%clk 0:00:15]} 78. Rb5 {[%clk 0:00:15]}  Rh1 {[%clk 0:00:15]} 79. Rb7 {[%clk 0:00:15]}  Rh2 {[%clk 0:00:15]} 80. Rb6 {[%clk 0:00:14]}  Rh1 {[%clk 0:00:16]} 81. Rb5 {[%clk 0:00:14]}  Rh2 {[%clk 0:00:16]} 82. Kf4 {[%clk 0:00:14]}  Rf2+ {[%clk 0:00:15]} 83. Kg3 {[%clk 0:00:14]}  Rf1 {[%clk 0:00:16]} 84. g5 {[%clk 0:00:15]}  Rh1 {[%clk 0:00:16]} 85. Kg4 {[%clk 0:00:15]}  Rg1+ {[%clk 0:00:16]} 86. Kf3 {[%clk 0:00:15]}  Rh1 {[%clk 0:00:17]} 87. h6 {[%clk 0:00:14]}  gxh6 {[%clk 0:00:17]} 88. Rb7+ {[%clk 0:00:14]}  Kg6 {[%clk 0:00:17]} 89. gxh6 {[%clk 0:00:14]}  Rxh6 {[%clk 0:00:17]} 90. Rb6+ {[%clk 0:00:15]}  Kg5 {[%clk 0:00:17]} 91. Rxh6 {[%clk 0:00:16]}  Kxh6 {[%clk 0:00:18]} 1/2-1/2


[Site "https://www.chess.com"]

[Event "Titled Tuesday Blitz November 07 Early 2023"]
[White "Sviridova, Vlada"]
[Black "marik_spb"]
[WhiteFideId "24109606"]
[WhiteElo "2238"]
[BlackElo "2389"]
[Result "0-1"]
[Round "4"]
[TimeControl "180+1"]
[Date "2023.11.07"]
[WhiteClock "0:00:01"]
[BlackClock "0:00:05"]
[Board "202"]

1. d4 {[%clk 0:03:00]}  Nf6 {[%clk 0:02:59]} 2. c4 {[%clk 0:03:01]}  e6 {[%clk 0:03:00]} 3. Nf3 {[%clk 0:03:00]}  b6 {[%clk 0:02:58]} 4. g3 {[%clk 0:02:59]}  Bb7 {[%clk 0:02:59]} 5. Bg2 {[%clk 0:02:59]}  Be7 {[%clk 0:02:57]} 6. O-O {[%clk 0:02:59]}  O-O {[%clk 0:02:53]} 7. Nc3 {[%clk 0:02:59]}  d5 {[%clk 0:02:53]} 8. Ne5 {[%clk 0:02:57]}  c5 {[%clk 0:02:41]} 9. dxc5 {[%clk 0:02:47]}  bxc5 {[%clk 0:02:38]} 10. cxd5 {[%clk 0:02:44]}  exd5 {[%clk 0:02:35]} 11. Nd3 {[%clk 0:02:33]}  Nbd7 {[%clk 0:02:30]} 12. Nf4 {[%clk 0:02:28]}  Nb6 {[%clk 0:02:29]} 13. b3 {[%clk 0:02:24]}  Rb8 {[%clk 0:02:18]} 14. Ba3 {[%clk 0:01:47]}  d4 {[%clk 0:02:03]} 15. Bxb7 {[%clk 0:01:41]}  Rxb7 {[%clk 0:02:04]} 16. Nb1 {[%clk 0:01:38]}  Ne4 {[%clk 0:01:24]} 17. Qc2 {[%clk 0:01:35]}  Ng5 {[%clk 0:00:50]} 18. Nd2 {[%clk 0:00:37]}  Nd5 {[%clk 0:00:46]} 19. Ng2 {[%clk 0:00:26]}  Nh3+ {[%clk 0:00:40]} 20. Kh1 {[%clk 0:00:26]}  Nc3 {[%clk 0:00:36]} 21. Ne4 {[%clk 0:00:20]}  Nxe4 {[%clk 0:00:15]} 22. Qxe4 {[%clk 0:00:21]}  Re8 {[%clk 0:00:15]} 23. Qxb7 {[%clk 0:00:20]}  Bf8 {[%clk 0:00:13]} 24. Rae1 {[%clk 0:00:18]}  d3 {[%clk 0:00:12]} 25. exd3 {[%clk 0:00:16]}  Rxe1 {[%clk 0:00:12]} 26. Rxe1 {[%clk 0:00:15]}  Nxf2+ {[%clk 0:00:11]} 27. Kg1 {[%clk 0:00:16]}  Nxd3 {[%clk 0:00:12]} 28. Rf1 {[%clk 0:00:13]}  Qd4+ {[%clk 0:00:12]} 29. Kh1 {[%clk 0:00:13]}  Nf2+ {[%clk 0:00:11]} 30. Rxf2 {[%clk 0:00:14]}  Qxf2 {[%clk 0:00:12]} 31. h4 {[%clk 0:00:12]}  Qxa2 {[%clk 0:00:11]} 32. Bc1 {[%clk 0:00:09]}  Qb1 {[%clk 0:00:10]} 33. Qc8 {[%clk 0:00:06]}  Qxc1+ {[%clk 0:00:10]} 34. Kh2 {[%clk 0:00:07]}  Qc2 {[%clk 0:00:08]} 35. Qc7 {[%clk 0:00:04]}  Qxb3 {[%clk 0:00:08]} 36. Qxa7 {[%clk 0:00:04]}  c4 {[%clk 0:00:07]} 37. Qc7 {[%clk 0:00:04]}  c3 {[%clk 0:00:08]} 38. h5 {[%clk 0:00:04]}  c2 {[%clk 0:00:06]} 39. Ne1 {[%clk 0:00:04]}  Qe3 {[%clk 0:00:04]} 40. Nxc2 {[%clk 0:00:04]}  Qe2+ {[%clk 0:00:05]} 41. Kh3 {[%clk 0:00:04]}  Qxh5+ {[%clk 0:00:05]} 42. Kg2 {[%clk 0:00:04]}  Qe2+ {[%clk 0:00:06]} 43. Kh3 {[%clk 0:00:05]}  h5 {[%clk 0:00:06]} 44. Qc8 {[%clk 0:00:04]}  g6 {[%clk 0:00:05]} 45. Qc3 {[%clk 0:00:03]}  Bg7 {[%clk 0:00:05]} 46. Qc8+ {[%clk 0:00:02]}  Kh7 {[%clk 0:00:05]} 47. Nb4 {[%clk 0:00:01]}  Qf1+ {[%clk 0:00:05]} 48. Kh2 {[%clk 0:00:02]}  h4 {[%clk 0:00:05]} 49. gxh4 {[%clk 0:00:01]}  Be5# {[%clk 0:00:05]} 0-1


[Site "https://www.chess.com"]

[Event "Titled Tuesday Blitz November 07 Early 2023"]
[White "KorolDimitriy75"]
[Black "TheAlienParty"]
[WhiteElo "2342"]
[BlackElo "2196"]
[Result "0-1"]
[Round "4"]
[TimeControl "180+1"]
[Date "2023.11.07"]
[WhiteClock "0:00:00"]
[BlackClock "0:01:30"]
[Board "205"]

1. d4 {[%clk 0:03:00]}  Nf6 {[%clk 0:02:58]} 2. c4 {[%clk 0:03:00]}  e6 {[%clk 0:02:41]} 3. Nc3 {[%clk 0:03:00]}  Bb4 {[%clk 0:02:40]} 4. Qc2 {[%clk 0:03:01]}  O-O {[%clk 0:02:39]} 5. e4 {[%clk 0:03:01]}  d5 {[%clk 0:02:39]} 6. cxd5 {[%clk 0:03:02]}  exd5 {[%clk 0:02:38]} 7. e5 {[%clk 0:03:03]}  Ne4 {[%clk 0:02:38]} 8. Bd3 {[%clk 0:03:03]}  Nc6 {[%clk 0:02:37]} 9. Ne2 {[%clk 0:03:02]}  f5 {[%clk 0:02:28]} 10. O-O {[%clk 0:03:01]}  Kh8 {[%clk 0:02:27]} 11. f3 {[%clk 0:02:48]}  Nxc3 {[%clk 0:02:26]} 12. bxc3 {[%clk 0:02:44]}  Ba5 {[%clk 0:02:26]} 13. Ba3 {[%clk 0:02:34]}  Rf7 {[%clk 0:02:24]} 14. Rae1 {[%clk 0:01:27]}  Be6 {[%clk 0:02:20]} 15. Nf4 {[%clk 0:01:25]}  Qd7 {[%clk 0:02:18]} 16. Kh1 {[%clk 0:01:04]}  Re8 {[%clk 0:02:17]} 17. h3 {[%clk 0:00:57]}  Ne7 {[%clk 0:02:11]} 18. g4 {[%clk 0:00:50]}  fxg4 {[%clk 0:01:59]} 19. fxg4 {[%clk 0:00:49]}  g6 {[%clk 0:01:58]} 20. Nxe6 {[%clk 0:00:21]}  Qxe6 {[%clk 0:01:58]} 21. Rxf7 {[%clk 0:00:20]}  Qxf7 {[%clk 0:01:57]} 22. Rf1 {[%clk 0:00:20]}  Qg7 {[%clk 0:01:51]} 23. Qf2 {[%clk 0:00:17]}  Bxc3 {[%clk 0:01:48]} 24. Qf7 {[%clk 0:00:09]}  Qxf7 {[%clk 0:01:34]} 25. Rxf7 {[%clk 0:00:10]}  Nc6 {[%clk 0:01:31]} 26. Rxc7 {[%clk 0:00:06]}  Bxd4 {[%clk 0:01:30]} 27. Rxb7 {[%clk 0:00:00]}  Re7 {[%clk 0:01:30]} 0-1


[Site "https://www.chess.com"]

[Event "Titled Tuesday Blitz November 07 Early 2023"]
[White "Shapiro, Daniel"]
[Black "Skibbe, Willi"]
[WhiteFideId "2001780"]
[BlackFideId "4682190"]
[WhiteElo "2341"]
[BlackElo "2167"]
[Result "0-1"]
[Round "4"]
[TimeControl "180+1"]
[Date "2023.11.07"]
[WhiteClock "0:00:03"]
[BlackClock "0:00:25"]
[Board "206"]

1. d4 {[%clk 0:03:00]}  d5 {[%clk 0:02:49]} 2. c4 {[%clk 0:03:00]}  e6 {[%clk 0:02:48]} 3. Nf3 {[%clk 0:03:00]}  c6 {[%clk 0:02:48]} 4. Qc2 {[%clk 0:02:59]}  f5 {[%clk 0:02:46]} 5. Bf4 {[%clk 0:02:57]}  Bd6 {[%clk 0:02:42]} 6. e3 {[%clk 0:02:57]}  Nf6 {[%clk 0:02:40]} 7. Bd3 {[%clk 0:02:53]}  O-O {[%clk 0:02:39]} 8. h3 {[%clk 0:02:51]}  b6 {[%clk 0:02:38]} 9. Nc3 {[%clk 0:02:44]}  Bb7 {[%clk 0:02:36]} 10. O-O {[%clk 0:02:44]}  c5 {[%clk 0:02:22]} 11. dxc5 {[%clk 0:02:21]}  Bxc5 {[%clk 0:02:12]} 12. Rad1 {[%clk 0:02:10]}  Qc8 {[%clk 0:01:59]} 13. cxd5 {[%clk 0:02:00]}  Nxd5 {[%clk 0:01:55]} 14. Nxd5 {[%clk 0:02:00]}  Bxd5 {[%clk 0:01:53]} 15. Ne5 {[%clk 0:01:23]}  Nc6 {[%clk 0:01:39]} 16. a3 {[%clk 0:01:10]}  Nxe5 {[%clk 0:01:37]} 17. Bxe5 {[%clk 0:01:10]}  Qb7 {[%clk 0:01:38]} 18. e4 {[%clk 0:00:53]}  fxe4 {[%clk 0:01:32]} 19. Be2 {[%clk 0:00:50]}  Rac8 {[%clk 0:01:31]} 20. Qd2 {[%clk 0:00:46]}  e3 {[%clk 0:01:29]} 21. fxe3 {[%clk 0:00:42]}  Bxg2 {[%clk 0:01:28]} 22. Rxf8+ {[%clk 0:00:38]}  Rxf8 {[%clk 0:01:25]} 23. Bg4 {[%clk 0:00:38]}  Bf3 {[%clk 0:01:06]} 24. Bxe6+ {[%clk 0:00:34]}  Kh8 {[%clk 0:01:04]} 25. Rf1 {[%clk 0:00:30]}  Qe4 {[%clk 0:01:03]} 26. Qc3 {[%clk 0:00:16]}  Qg6+ {[%clk 0:00:26]} 27. Bg4 {[%clk 0:00:15]}  Bxg4 {[%clk 0:00:26]} 28. hxg4 {[%clk 0:00:12]}  Qxg4+ {[%clk 0:00:27]} 29. Kh2 {[%clk 0:00:03]}  Rxf1 {[%clk 0:00:25]} 0-1


[Site "https://www.chess.com"]

[Event "Titled Tuesday Blitz November 07 Early 2023"]
[White "katharinareinecke"]
[Black "Tharushi, T H D Niklesha"]
[BlackFideId "9918264"]
[WhiteElo "1897"]
[BlackElo "2266"]
[Result "0-1"]
[Round "4"]
[TimeControl "180+1"]
[Date "2023.11.07"]
[WhiteClock "0:00:11"]
[BlackClock "0:00:15"]
[Board "208"]

1. d4 {[%clk 0:03:00]}  Nf6 {[%clk 0:02:59]} 2. c4 {[%clk 0:03:00]}  e6 {[%clk 0:03:00]} 3. Nf3 {[%clk 0:02:59]}  Bb4+ {[%clk 0:03:00]} 4. Bd2 {[%clk 0:02:58]}  Qe7 {[%clk 0:03:00]} 5. g3 {[%clk 0:02:46]}  O-O {[%clk 0:02:57]} 6. Bg2 {[%clk 0:02:46]}  Bxd2+ {[%clk 0:02:40]} 7. Nbxd2 {[%clk 0:02:42]}  d6 {[%clk 0:02:41]} 8. O-O {[%clk 0:02:41]}  e5 {[%clk 0:02:41]} 9. e3 {[%clk 0:02:22]}  Bg4 {[%clk 0:02:36]} 10. h3 {[%clk 0:02:21]}  Bh5 {[%clk 0:02:18]} 11. dxe5 {[%clk 0:02:19]}  dxe5 {[%clk 0:02:17]} 12. Qb3 {[%clk 0:02:11]}  c6 {[%clk 0:02:10]} 13. Nh4 {[%clk 0:01:51]}  Bg6 {[%clk 0:02:07]} 14. Qc3 {[%clk 0:01:41]}  Nbd7 {[%clk 0:02:00]} 15. Nxg6 {[%clk 0:01:40]}  hxg6 {[%clk 0:01:59]} 16. Ne4 {[%clk 0:01:39]}  Nxe4 {[%clk 0:01:58]} 17. Bxe4 {[%clk 0:01:39]}  f5 {[%clk 0:01:55]} 18. Bg2 {[%clk 0:01:37]}  e4 {[%clk 0:01:42]} 19. Rad1 {[%clk 0:01:35]}  Ne5 {[%clk 0:01:40]} 20. Rd2 {[%clk 0:01:31]}  Rad8 {[%clk 0:01:34]} 21. Rfd1 {[%clk 0:01:29]}  Rde8 {[%clk 0:01:06]} 22. b4 {[%clk 0:01:23]}  Qf7 {[%clk 0:00:59]} 23. Qa1 {[%clk 0:01:13]}  Qxc4 {[%clk 0:00:54]} 24. a3 {[%clk 0:00:59]}  Qe6 {[%clk 0:00:44]} 25. Qc3 {[%clk 0:00:56]}  Qf6 {[%clk 0:00:37]} 26. Qb3+ {[%clk 0:00:51]}  Kh8 {[%clk 0:00:34]} 27. Rd6 {[%clk 0:00:50]}  Qg5 {[%clk 0:00:33]} 28. b5 {[%clk 0:00:42]}  Qh5 {[%clk 0:00:32]} 29. bxc6 {[%clk 0:00:32]}  bxc6 {[%clk 0:00:32]} 30. Qb7 {[%clk 0:00:25]}  Rf7 {[%clk 0:00:24]} 31. Qb3 {[%clk 0:00:19]}  Nd3 {[%clk 0:00:18]} 32. Bf1 {[%clk 0:00:17]}  Ne5 {[%clk 0:00:14]} 33. Bg2 {[%clk 0:00:17]}  Rfe7 {[%clk 0:00:14]} 34. Rd8 {[%clk 0:00:16]}  Kh7 {[%clk 0:00:10]} 35. Rxe8 {[%clk 0:00:15]}  Rxe8 {[%clk 0:00:11]} 36. Qc3 {[%clk 0:00:15]}  Qxd1+ {[%clk 0:00:10]} 37. Kh2 {[%clk 0:00:15]}  Nf3+ {[%clk 0:00:11]} 38. Bxf3 {[%clk 0:00:14]}  exf3 {[%clk 0:00:12]} 39. Qxc6 {[%clk 0:00:14]}  Qf1 {[%clk 0:00:12]} 40. Qxf3 {[%clk 0:00:13]}  Qd3 {[%clk 0:00:13]} 41. g4 {[%clk 0:00:13]}  Qe4 {[%clk 0:00:12]} 42. Qg3 {[%clk 0:00:13]}  Qe5 {[%clk 0:00:13]} 43. f4 {[%clk 0:00:11]}  Qxe3 {[%clk 0:00:13]} 44. Qh4+ {[%clk 0:00:11]}  Kg8 {[%clk 0:00:13]} 45. Qg5 {[%clk 0:00:11]}  Qe2+ {[%clk 0:00:13]} 46. Kg3 {[%clk 0:00:11]}  Re3+ {[%clk 0:00:14]} 47. Kh4 {[%clk 0:00:11]}  Qf2# {[%clk 0:00:15]} 0-1


[Site "https://www.chess.com"]

[Event "Titled Tuesday Blitz November 07 Early 2023"]
[White "Sailer, Mike"]
[Black "Zavgorodniy, Sergiy"]
[WhiteFideId "2012901"]
[BlackFideId "14110148"]
[WhiteElo "2071"]
[BlackElo "2675"]
[Result "0-1"]
[Round "4"]
[TimeControl "180+1"]
[Date "2023.11.07"]
[WhiteClock "0:00:04"]
[BlackClock "0:01:04"]
[Board "209"]

1. g3 {[%clk 0:03:00]}  d5 {[%clk 0:02:57]} 2. Bg2 {[%clk 0:03:00]}  Nf6 {[%clk 0:02:58]} 3. c4 {[%clk 0:03:01]}  e6 {[%clk 0:02:57]} 4. Nf3 {[%clk 0:03:01]}  Be7 {[%clk 0:02:57]} 5. O-O {[%clk 0:03:01]}  O-O {[%clk 0:02:57]} 6. cxd5 {[%clk 0:03:02]}  exd5 {[%clk 0:02:57]} 7. d4 {[%clk 0:03:03]}  c6 {[%clk 0:02:56]} 8. Bf4 {[%clk 0:03:00]}  Bf5 {[%clk 0:02:55]} 9. Nc3 {[%clk 0:03:00]}  Nbd7 {[%clk 0:02:56]} 10. a3 {[%clk 0:02:54]}  Re8 {[%clk 0:02:55]} 11. b4 {[%clk 0:02:53]}  a6 {[%clk 0:02:54]} 12. Na4 {[%clk 0:02:48]}  b5 {[%clk 0:02:53]} 13. Nc5 {[%clk 0:02:48]}  Nb6 {[%clk 0:02:53]} 14. Ne5 {[%clk 0:02:38]}  Qc8 {[%clk 0:02:49]} 15. f3 {[%clk 0:02:24]}  a5 {[%clk 0:02:41]} 16. e4 {[%clk 0:02:21]}  Bg6 {[%clk 0:02:23]} 17. g4 {[%clk 0:01:32]}  axb4 {[%clk 0:02:05]} 18. axb4 {[%clk 0:01:31]}  Rxa1 {[%clk 0:02:04]} 19. Qxa1 {[%clk 0:01:31]}  dxe4 {[%clk 0:02:05]} 20. Nxg6 {[%clk 0:01:16]}  hxg6 {[%clk 0:02:03]} 21. Bh3 {[%clk 0:01:02]}  exf3 {[%clk 0:01:58]} 22. Rxf3 {[%clk 0:01:02]}  Nxg4 {[%clk 0:01:22]} 23. Rg3 {[%clk 0:00:48]}  f5 {[%clk 0:01:17]} 24. Bxg4 {[%clk 0:00:44]}  fxg4 {[%clk 0:01:18]} 25. Qa2+ {[%clk 0:00:40]}  Kh7 {[%clk 0:01:16]} 26. Ne4 {[%clk 0:00:28]}  Qf5 {[%clk 0:01:08]} 27. Nd6 {[%clk 0:00:09]}  Bxd6 {[%clk 0:01:04]} 28. Bxd6 {[%clk 0:00:04]}  Re1+ {[%clk 0:01:04]} 0-1


[Site "https://www.chess.com"]

[Event "Titled Tuesday Blitz November 07 Early 2023"]
[White "Yaran, Siar"]
[Black "Schut, Han"]
[WhiteFideId "6323006"]
[BlackFideId "1005561"]
[WhiteElo "2672"]
[BlackElo "2289"]
[Result "0-1"]
[Round "4"]
[TimeControl "180+1"]
[Date "2023.11.07"]
[WhiteClock "0:01:59"]
[BlackClock "0:02:06"]
[Board "210"]

1. e4 {[%clk 0:03:00]}  c5 {[%clk 0:02:59]} 2. Nf3 {[%clk 0:03:00]}  d6 {[%clk 0:02:59]} 3. d4 {[%clk 0:03:01]}  cxd4 {[%clk 0:03:00]} 4. Nxd4 {[%clk 0:03:01]}  Nf6 {[%clk 0:03:01]} 5. Nc3 {[%clk 0:03:01]}  a6 {[%clk 0:03:01]} 6. Bg5 {[%clk 0:03:01]}  e6 {[%clk 0:03:02]} 7. f4 {[%clk 0:03:01]}  Be7 {[%clk 0:03:02]} 8. Qf3 {[%clk 0:03:01]}  h6 {[%clk 0:03:02]} 9. Bh4 {[%clk 0:03:01]}  g5 {[%clk 0:03:03]} 10. fxg5 {[%clk 0:03:01]}  Nfd7 {[%clk 0:03:02]} 11. Nxe6 {[%clk 0:02:57]}  fxe6 {[%clk 0:03:03]} 12. Qh5+ {[%clk 0:02:57]}  Kf8 {[%clk 0:03:04]} 13. Bb5 {[%clk 0:02:57]}  Kg7 {[%clk 0:03:03]} 14. O-O {[%clk 0:02:54]}  Ne5 {[%clk 0:03:04]} 15. Bg3 {[%clk 0:02:52]}  Ng6 {[%clk 0:03:04]} 16. gxh6+ {[%clk 0:02:45]}  Rxh6 {[%clk 0:03:05]} 17. Rf7+ {[%clk 0:02:45]}  Kxf7 {[%clk 0:03:05]} 18. Qxh6 {[%clk 0:02:46]}  axb5 {[%clk 0:03:05]} 19. Rf1+ {[%clk 0:02:46]}  Ke8 {[%clk 0:03:06]} 20. Qxg6+ {[%clk 0:02:45]}  Kd7 {[%clk 0:03:06]} 21. Rf7 {[%clk 0:02:31]}  b4 {[%clk 0:03:01]} 22. Bh4 {[%clk 0:02:21]}  bxc3 {[%clk 0:02:29]} 23. Bxe7 {[%clk 0:02:16]}  Qb6+ {[%clk 0:02:18]} 24. Kf1 {[%clk 0:02:11]}  cxb2 {[%clk 0:02:06]} 25. Bd8+ {[%clk 0:01:59]}  Kc6 {[%clk 0:02:06]} 0-1


[Site "https://www.chess.com"]

[Event "Titled Tuesday Blitz November 07 Early 2023"]
[White "Martin, Lewis"]
[Black "Piesik, Piotr"]
[WhiteFideId "410551"]
[BlackFideId "1136194"]
[WhiteElo "2280"]
[BlackElo "2661"]
[Result "0-1"]
[Round "4"]
[TimeControl "180+1"]
[Date "2023.11.07"]
[WhiteClock "0:01:07"]
[BlackClock "0:01:58"]
[Board "211"]

1. c4 {[%clk 0:02:44]}  g6 {[%clk 0:02:59]} 2. g3 {[%clk 0:02:43]}  Bg7 {[%clk 0:02:59]} 3. Bg2 {[%clk 0:02:43]}  Nc6 {[%clk 0:03:00]} 4. Nc3 {[%clk 0:02:40]}  d6 {[%clk 0:03:00]} 5. Nf3 {[%clk 0:02:38]}  e5 {[%clk 0:03:00]} 6. d3 {[%clk 0:02:38]}  f5 {[%clk 0:03:00]} 7. O-O {[%clk 0:02:39]}  Nf6 {[%clk 0:03:00]} 8. Bd2 {[%clk 0:02:33]}  O-O {[%clk 0:03:00]} 9. Ne1 {[%clk 0:02:33]}  Be6 {[%clk 0:02:59]} 10. b4 {[%clk 0:02:30]}  d5 {[%clk 0:02:55]} 11. b5 {[%clk 0:02:27]}  Ne7 {[%clk 0:02:54]} 12. c5 {[%clk 0:02:19]}  d4 {[%clk 0:02:54]} 13. Na4 {[%clk 0:02:17]}  e4 {[%clk 0:02:49]} 14. Bg5 {[%clk 0:02:12]}  e3 {[%clk 0:02:38]} 15. Bxf6 {[%clk 0:02:02]}  Bxf6 {[%clk 0:02:37]} 16. f4 {[%clk 0:02:01]}  Bd5 {[%clk 0:02:26]} 17. Bxd5+ {[%clk 0:01:57]}  Qxd5 {[%clk 0:02:25]} 18. Qb3 {[%clk 0:01:57]}  a6 {[%clk 0:02:25]} 19. bxa6 {[%clk 0:01:47]}  Rxa6 {[%clk 0:02:24]} 20. Nf3 {[%clk 0:01:45]}  Rfa8 {[%clk 0:02:23]} 21. Qxd5+ {[%clk 0:01:36]}  Nxd5 {[%clk 0:02:22]} 22. Nb2 {[%clk 0:01:36]}  Rxa2 {[%clk 0:02:19]} 23. Rxa2 {[%clk 0:01:35]}  Rxa2 {[%clk 0:02:20]} 24. Nc4 {[%clk 0:01:34]}  Nc3 {[%clk 0:02:14]} 25. Nce5 {[%clk 0:01:30]}  Nxe2+ {[%clk 0:02:12]} 26. Kh1 {[%clk 0:01:30]}  Bxe5 {[%clk 0:02:12]} 27. fxe5 {[%clk 0:01:27]}  Kf7 {[%clk 0:02:04]} 28. Re1 {[%clk 0:01:27]}  Ke7 {[%clk 0:02:02]} 29. Kg2 {[%clk 0:01:19]}  Nf4+ {[%clk 0:02:01]} 30. Kf1 {[%clk 0:01:17]}  Rf2+ {[%clk 0:01:59]} 31. Kg1 {[%clk 0:01:17]}  Nh3+ {[%clk 0:01:56]} 32. Kh1 {[%clk 0:01:16]}  Rxf3 {[%clk 0:01:57]} 33. Kg2 {[%clk 0:01:14]}  Ng5 {[%clk 0:01:57]} 34. h4 {[%clk 0:01:14]}  Rf2+ {[%clk 0:01:57]} 35. Kh1 {[%clk 0:01:07]}  Nf3 {[%clk 0:01:58]} 0-1


[Site "https://www.chess.com"]